fUSD/lending_fUSD_20240418
["ID","MTS","AMOUNT","RATE_DAILY","PERIOD"]
[322851389,1713414634741,-150.0,0.00020192,2]
[322851390,1713414634751,-350.16,0.00020192,2]
[322851391,1713414634761,-150.0,0.00020192,2]
[322851392,1713414634770,-162.63,0.00020192,2]
[322851393,1713414634781,-418.79,0.00020192,2]
[322851394,1713414634790,-521.64,0.00020192,2]
[322851395,1713414634800,-150.0,0.00020192,2]
[322851396,1713414634809,-350.16,0.00020192,2]
[322851397,1713414634819,-162.63,0.00020192,2]
[322851398,1713414634829,-150.0,0.00020192,2]
[322851399,1713414634838,-150.0,0.00020192,2]
[322851400,1713414634847,-150.0,0.00020192,2]
[322851401,1713414634856,-418.79,0.00020192,2]
[322851402,1713414634866,-350.16,0.00020192,2]
[322851403,1713414634875,-521.64,0.00020192,2]
[322851404,1713414634884,-162.63,0.00020192,2]
[322851405,1713414634894,-350.16,0.00020192,2]
[322851406,1713414634903,-418.79,0.00020192,2]
[322851407,1713414634912,-162.63,0.00020192,2]
[322851408,1713414634922,-521.64,0.00020192,2]
[322851409,1713414634931,-150.0,0.00020192,2]
[322851410,1713414634941,-150.0,0.00020192,2]
[322851411,1713414634952,-521.64,0.00020192,2]
[322851412,1713414634962,-418.79,0.00020192,2]
[322851413,1713414634970,-162.63,0.00020192,2]
[322851414,1713414634980,-150.0,0.00020192,2]
[322851415,1713414634989,-350.16,0.00020192,2]
[322851416,1713414634998,-162.63,0.00020192,2]
[322851417,1713414635006,-418.79,0.00020192,2]
[322851418,1713414635016,-150.0,0.00020192,2]
[322851419,1713414635025,-156.11,0.00020192,2]
[322851420,1713414635035,-521.64,0.00020192,2]
[322851421,1713414635045,-350.16,0.00020192,2]
[322851422,1713414635055,-150.0,0.00020192,2]
[322851423,1713414635065,-418.79,0.00020192,2]
[322851424,1713414635075,-162.63,0.00020192,2]
[322851425,1713414635084,-150.0,0.00020192,2]
[322851426,1713414635094,-150.0,0.00020192,2]
[322851427,1713414635104,-350.16,0.00020192,2]
[322851428,1713414635113,-521.64,0.00020192,2]
[322851429,1713414635123,-17100.0,0.000202,7]
[322851430,1713414635133,-153.89458228,0.0002021,2]
[322851431,1713414635143,-380.34818168,0.00020254,2]
[322851432,1713414635356,-348.57704421,0.00020292,2]
[322851433,1713414635382,-406.72790083,0.00020296,2]
[322851434,1713414635391,-21300.0,0.000203,7]
[322851435,1713414635401,-209.77558447,0.00020302,2]
[322851436,1713414635411,-150.10701406,0.00020303,2]
[322851437,1713414635420,-1406.92762102,0.0002031,2]
[322851438,1713414635429,-514.437858,0.0002031,2]
[322851439,1713414635438,-154.25673102,0.00020331,2]
[322851440,1713414635448,-1406.92762094,0.00020376,2]
[322851441,1713414635459,-514.43785797,0.00020376,2]
[322851442,1713414635469,-457.84700844,0.00020378,2]
[322851443,1713414635478,-150.0,0.00020386,2]
[322851444,1713414635487,-29081.9298,0.000204,2]
[322851445,1713414635496,-4200.0,0.000204,7]
[322851446,1713414635511,-1200.0,0.0002041,2]
[322851447,1713414635522,-1406.92762094,0.00020441,2]
[322851448,1713414635532,-514.43785797,0.00020441,2]
[322851449,1713414635541,-150.0,0.00020466,2]
[322851450,1713414635551,-150.0,0.00020466,2]
[322851451,1713414635559,-150.0,0.00020466,2]
[322851452,1713414635569,-150.0,0.00020466,2]
[322851453,1713414635578,-8758.36429654,0.0002049,2]
[322851454,1713414635587,-150.0,0.000205,2]
[322851455,1713414635596,-4200.0,0.000205,7]
[322851456,1713414635606,-1406.92762094,0.00020507,2]
[322851457,1713414635615,-514.43785797,0.00020507,2]
[322851458,1713414635624,-164.47675467,0.00020512,2]
[322851459,1713414635633,-195.18887402,0.00020525,2]
[322851460,1713414635643,-457.84700844,0.00020529,2]
[322851461,1713414635652,-152.6872418,0.00020538,2]
[322851462,1713414635661,-154.25673102,0.00020539,2]
[322851463,1713414635670,-1406.92762094,0.00020572,2]
[322851464,1713414635680,-144.74780716,0.00020572,2]
[322851486,1713414641507,-571.01966468,0.00018777,7]
[322851487,1713414641519,-369.69005081,0.00020572,2]
[322851488,1713414641529,-209.77558447,0.0002059,2]
[322851489,1713414641538,-650.27570562,0.00020599,2]
[322851490,1713414641599,-3031.08389438,0.00020599,2]
[322851491,1713414641610,-3858.91610662,0.000206,7]
[322851492,1713414641622,-341.08389338,0.000206,7]
[322851493,1713414641631,-278.64610662,0.00020611,6]
[322851494,1713414642814,-1034.268095,0.00020611,6]
[322851499,1713414645411,-521.64,0.00020192,2]
[322851500,1713414645421,-345.47870689,0.00020192,2]
[322851501,1713414645663,-73.31129311,0.00020192,2]
[322851502,1713414645674,-1127.91805791,0.00020571,2]
[322851503,1713414645684,-16079.25579838,0.00020611,6]
[322851504,1713414645693,-152.47836372,0.00020612,2]
[322851505,1713414645702,-153.25842969,0.00020617,2]
[322851506,1713414645711,-1406.92762094,0.00020638,2]
[322851507,1713414645720,-514.43785797,0.00020638,2]
[322851508,1713414645729,-955.18384414,0.00020639,2]
[322851509,1713414645739,-166.66666667,0.00020658,2]
[322851510,1713414645748,-406.72790083,0.00020661,2]
[322851511,1713414645757,-209.77558447,0.00020688,2]
[322851512,1713414645766,-5914.275,0.00020699,2]
[322851513,1713414645776,-5779.557,0.00020699,2]
[322851514,1713414645785,-2714.402,0.00020699,2]
[322851515,1713414645794,-37645.0,0.00020699,2]
[322851516,1713414645803,-1065.656,0.00020699,2]
[322851517,1713414645812,-4200.0,0.000207,7]
[322851518,1713414645822,-1406.92762094,0.00020703,2]
[322851519,1713414645831,-514.43785797,0.00020703,2]
[322851520,1713414645841,-154.97857695,0.00020704,2]
[322851521,1713414645850,-154.25673102,0.00020708,2]
[322851522,1713414645859,-406.72790083,0.00020729,2]
[322851523,1713414645869,-150.0,0.00020736,2]
[322851524,1713414645878,-150.0,0.00020748,2]
[322851525,1713414645888,-150.0,0.00020751,2]
[322851526,1713414645898,-150.0,0.00020755,2]
[322851527,1713414645907,-150.0,0.00020762,2]
[322851528,1713414645916,-150.0,0.00020767,2]
[322851529,1713414645926,-1406.92762094,0.00020769,2]
[322851530,1713414645935,-514.43785797,0.00020769,2]
[322851531,1713414645945,-150.0,0.00020769,2]
[322851532,1713414645954,-150.0,0.00020771,2]
[322851533,1713414645966,-153.25842969,0.00020771,2]
[322851534,1713414645975,-150.0,0.00020782,2]
[322851535,1713414645985,-174.76296694,0.0002079,2]
[322851536,1713414645994,-500.0,0.000208,2]
[322851537,1713414646004,-4879.0,0.000208,7]
[322851538,1713414646013,-154.25673102,0.000208,2]
[322851539,1713414646023,-151.59560139,0.000208,2]
[322851540,1713414646032,-150.0,0.00020809,2]
[322851541,1713414646042,-150.0,0.00020816,2]
[322851542,1713414646051,-150.0,0.00020819,2]
[322851543,1713414646061,-1000.0,0.00020822,2]
[322851544,1713414646070,-1000.0,0.00020822,2]
[322851545,1713414646079,-1000.0,0.00020822,2]
[322851546,1713414646089,-1000.0,0.00020822,2]
[322851547,1713414646098,-1000.0,0.00020822,2]
[322851548,1713414646108,-1000.0,0.00020822,2]
[322851549,1713414646117,-1000.0,0.00020822,2]
[322851550,1713414646126,-1000.0,0.00020822,2]
[322851551,1713414646134,-1000.0,0.00020822,2]
[322851552,1713414646144,-1000.0,0.00020822,2]
[322851554,1713414646153,-1000.0,0.00020822,2]
[322851555,1713414646163,-1000.0,0.00020822,2]
[322851556,1713414646172,-1000.0,0.00020822,2]
[322851557,1713414646181,-1000.0,0.00020822,2]
[322851558,1713414646190,-1000.0,0.00020822,2]
[322851559,1713414646200,-1000.0,0.00020822,2]
[322851560,1713414646212,-1000.0,0.00020822,2]
[322851561,1713414646221,-1000.0,0.00020822,2]
[322851562,1713414646229,-1000.0,0.00020822,2]
[322851563,1713414646238,-461.0,0.00020822,2]
[322851564,1713414646247,-150.0,0.00020824,2]
[322851566,1713414646256,-1000.0,0.00020831,2]
[322851567,1713414646265,-200.0,0.00020832,2]
[322851569,1713414646273,-1000.0,0.00020832,2]
[322851570,1713414646282,-200.0,0.00020832,2]
[322851571,1713414646291,-500.0,0.00020832,2]
[322851572,1713414646301,-1406.92762094,0.00020834,2]
[322851573,1713414646310,-514.43785797,0.00020834,2]
[322851574,1713414646319,-150.0,0.00020838,2]
[322851575,1713414646328,-150.0,0.0002085,2]
[322851576,1713414646337,-150.0,0.00020859,2]
[322851577,1713414646346,-150.0,0.0002087,2]
[322851578,1713414646355,-150.0,0.00020886,2]
[322851579,1713414646365,-195.18887402,0.00020886,2]
[322851580,1713414646375,-150.0,0.00020888,2]
[322851581,1713414646384,-150.0,0.00020888,2]
[322851582,1713414646393,-150.0,0.0002089,2]
[322851584,1713414646402,-155.47526339,0.0002089,2]
[322851585,1713414646411,-500.0,0.00020891,2]
[322851586,1713414646421,-150.0,0.00020894,2]
[322851587,1713414646430,-150.0,0.00020894,2]
[322851588,1713414646439,-150.0,0.00020895,2]
[322851589,1713414646448,-46152.7472,0.00020899,2]
[322851590,1713414646459,-207.9719,0.000209,2]
[322851591,1713414646469,-55556.97929333,0.000209,2]
[322851592,1713414646478,-500.0,0.000209,2]
[322851593,1713414646487,-5713.5801324,0.000209,2]
[322851594,1713414646496,-200.35617873,0.000209,2]
[322851595,1713414646505,-162331.38205148,0.000209,3]
[322851596,1713414646515,-3818.78216541,0.000209,2]
[322851597,1713414646525,-154.54111204,0.000209,2]
[322851598,1713414646534,-154.54111203,0.000209,2]
[322851599,1713414646543,-154.54111203,0.000209,2]
[322851600,1713414646552,-7500.0,0.000209,2]
[322851601,1713414646563,-154.54111203,0.000209,2]
[322851602,1713414646572,-154.54111203,0.000209,2]
[322851603,1713414646582,-154.54111203,0.000209,2]
[322851604,1713414646592,-154.54111203,0.000209,2]
[322851605,1713414646602,-154.54111203,0.000209,2]
[322851606,1713414646611,-154.54111203,0.000209,2]
[322851607,1713414646620,-154.54111203,0.000209,2]
[322851608,1713414646631,-154.54111203,0.000209,2]
[322851609,1713414646640,-154.54111203,0.000209,2]
[322851610,1713414646651,-154.54111203,0.000209,2]
[322851611,1713414646661,-154.54111203,0.000209,2]
[322851612,1713414646671,-154.54111203,0.000209,2]
[322851613,1713414646683,-154.54111203,0.000209,2]
[322851614,1713414646693,-1406.92762094,0.000209,2]
[322851615,1713414646703,-154.54111203,0.000209,2]
[322851616,1713414646713,-4725.96432815,0.000209,3]
[322851617,1713414646723,-514.43785797,0.000209,2]
[322851618,1713414646733,-2150.89356,0.0002092,2]
[322851619,1713414646744,-150.0,0.00020934,2]
[322851620,1713414646754,-150.0,0.00020936,2]
[322851621,1713414646764,-150.0,0.00020938,2]
[322851622,1713414646774,-150.0,0.00020941,2]
[322851623,1713414646783,-150.0,0.00020952,2]
[322851624,1713414646792,-1200.0,0.00020958,2]
[322851625,1713414646802,-150.0,0.00020958,2]
[322851627,1713414646811,-150.0,0.00020963,2]
[322851629,1713414646820,-150.0,0.00020972,2]
[322851631,1713414646830,-150.0,0.00020975,2]
[322851632,1713414646839,-588.2900361,0.00020979,2]
[322851633,1713414646848,-150.0,0.0002098,2]
[322851634,1713414646857,-150.0,0.00020982,2]
[322851635,1713414646866,-250000.0,0.0002099,2]
[322851636,1713414646876,-151.33842427,0.00020994,2]
[322851637,1713414646885,-150.0,0.00020995,2]
[322851638,1713414646894,-713.4502222,0.00020997,2]
[322851639,1713414646903,-161.2421416,0.00020997,2]
[322851640,1713414646912,-684.8812079,0.00020997,2]
[322851641,1713414646921,-392.4196398,0.00020997,2]
[322851642,1713414646930,-155.4589138,0.00020997,2]
[322851643,1713414646939,-8066.4625012,0.00020997,2]
[322851644,1713414646948,-788.9562836,0.00020997,2]
[322851645,1713414646958,-5641.99321801,0.00020997,2]
[322851646,1713414649609,-150.0,0.00020192,2]
[322851647,1713414649619,-150.0,0.00020192,2]
[322851648,1713414649629,-162.63,0.00020192,2]
[322851649,1713414649638,-350.16,0.00020192,2]
[322851650,1713414649647,-1912.37760879,0.00020997,2]
[322851651,1713414649657,-1662.5600411,0.00020997,2]
[322851652,1713414649666,-2128.66065549,0.00020997,2]
[322851653,1713414649747,-983.04780711,0.00020997,2]
[322851654,1713414649756,-429.1652309,0.00020997,2]
[322851655,1713414649766,-798.566001,0.00020997,2]
[322851656,1713414649775,-250.20919198,0.00020998,2]
[322851657,1713414649818,-2300.61605765,0.00020998,2]
[322851658,1713414649827,-150.32424235,0.00020998,2]
[322851659,1713414783105,150.5,0.0002099,15]
[322851660,1713414783981,150.5,0.0002098,15]
[322851661,1713414784254,150.5,0.0002099,15]
[322851662,1713414784385,150.5,0.0002097,15]
[322851663,1713414787308,150.5,0.0002098,15]
[322851664,1713414787359,150.5,0.0002099,15]
[322851665,1713414787612,150.5,0.0002097,15]
[322851666,1713414787738,150.5,0.0002098,15]
[322851667,1713414788058,182.74,0.0002099,15]
[322851668,1713414788244,150.5,0.0002097,15]
[322851669,1713414788644,296.63,0.0002099,15]
[322851670,1713414835326,151.0,0.00025133,120]
[322851671,1713415104437,151.0,0.00025128,120]
[322851676,1713415672784,1550.0,0.00017,2]
[322851677,1713415689807,151.0,0.00025107,120]
[322851678,1713415740933,150.0,0.000282,120]
[322851693,1713415831638,-378.78784574,0.00017499,2]
[322851694,1713415831648,-155.0,0.00017499,2]
[322851695,1713415831657,-343.12217337,0.000175,2]
[322851696,1713415831666,-571.01966468,0.000175,7]
[322851697,1713415831677,-162.84215295,0.000175,2]
[322851698,1713415831686,-2354.00026216,0.00017501,2]
[322851699,1713415831695,-1127.91805791,0.00017501,2]
[322851700,1713415831709,-159.31,0.00017505,2]
[322851701,1713415831750,-851.26429784,0.00019,2]
[322851702,1713415831785,-253.92241788,0.00019,2]
[322851703,1713415831817,-494.81328428,0.00019,2]
[322851704,1713415831827,-150.0,0.00019178,2]
[322851705,1713415831837,-14.65671572,0.000192,2]
[322851706,1713415831850,-1290.90309334,0.000192,2]
[322851707,1713415831862,-469.63521555,0.000192,2]
[322851708,1713415831874,-643.59914021,0.000192,2]
[322851709,1713415831886,-1015.83173565,0.000192,2]
[322851710,1713415831945,-299.66504719,0.000192,2]
[322851711,1713415831957,-136.02670071,0.000192,2]
[322851712,1713415831968,-240.78,0.00019329,4]
[322851713,1713415831978,-150.10701406,0.00019385,2]
[322851715,1713415831989,-521.64,0.000194,2]
[322851717,1713415831998,-418.79,0.000194,2]
[322851719,1713415832007,-150.0,0.000194,2]
[322851720,1713415832017,-162.63,0.000194,2]
[322851721,1713415832026,-350.16,0.000194,2]
[322851722,1713415832036,-150.0,0.000194,2]
[322851723,1713415832045,-521.64,0.000194,2]
[322851724,1713415832055,-150.0,0.000194,2]
[322851725,1713415832065,-150.0,0.000194,2]
[322851726,1713415832075,-161.3,0.000194,2]
[322851727,1713415832084,-418.79,0.000194,2]
[322851728,1713415832093,-350.16,0.000194,2]
[322851729,1713415832103,-521.64,0.000194,2]
[322851730,1713415832112,-418.79,0.000194,2]
[322851731,1713415832121,-509.62,0.000194,2]
[322851732,1713415832130,-150.0,0.000194,2]
[322851733,1713415832140,-521.64,0.000194,2]
[322851734,1713415832152,-418.79,0.000194,2]
[322851735,1713415832161,-150.0,0.000194,2]
[322851736,1713415832171,-360.0,0.00019403,2]
[322851737,1713415832181,-412.0623076,0.00019413,2]
[322851738,1713415832191,-153.2584297,0.00019419,2]
[322851739,1713415832201,-1493.55,0.00019435,2]
[322851740,1713415832210,-174.81298706,0.00019436,2]
[322851741,1713415832219,-795.98653678,0.00019439,2]
[322851742,1713415832229,-174.81298706,0.00019481,2]
[322851743,1713415832238,-418.79,0.000195,2]
[322851744,1713415832248,-521.64,0.000195,2]
[322851745,1713415832257,-150.0,0.000195,2]
[322851746,1713415832267,-418.38299985,0.00019578,2]
[322851747,1713415832276,-499.99,0.0001958,2]
[322851748,1713415832285,-174.81298706,0.00019594,2]
[322851749,1713415832294,-640.0,0.00019601,2]
[322851750,1713415832303,-338.93991735,0.00019602,2]
[322851751,1713415832312,-325.3385746,0.00019677,2]
[322851752,1713415832321,-795.98653678,0.00019697,2]
[322851753,1713415832330,-490.0,0.000198,2]
[322851754,1713415832339,-153.89458228,0.00019841,2]
[322851755,1713415832348,-153.2584297,0.0001986,2]
[322851756,1713415832357,-162.65739502,0.00019869,2]
[322851757,1713415832366,-174.81298706,0.00019879,2]
[322851758,1713415832375,-418.38299985,0.00019906,2]
[322851759,1713415832384,-153.2584297,0.00019929,2]
[322851760,1713415832393,-164.03903636,0.00019986,2]
[322851761,1713415832402,-418.38299985,0.00019995,2]
[322851762,1713415832411,-2017.992106,0.0002,2]
[322851763,1713415832421,-151.33842427,0.00020129,2]
[322851764,1713415832430,-5000.0,0.00020177,2]
[322851765,1713415832439,-521.64,0.00020178,2]
[322851766,1713415832449,-418.79,0.00020178,2]
[322851767,1713415832458,-350.16,0.00020178,2]
[322851768,1713415832467,-162.63,0.00020178,2]
[322851769,1713415832476,-150.0,0.00020178,2]
[322851770,1713415832486,-150.0,0.00020178,2]
[322851771,1713415832495,-338.93991735,0.00020181,2]
[322851772,1713415832505,-418.79,0.00020192,2]
[322851773,1713415832515,-521.64,0.00020192,2]
[322851774,1713415832525,-150.0,0.00020192,2]
[322851775,1713415832537,-521.64,0.00020192,2]
[322851776,1713415832546,-418.79,0.00020192,2]
[322851777,1713415832554,-150.0,0.00020192,2]
[322851778,1713415832563,-521.64,0.00020192,2]
[322851779,1713415832572,-418.79,0.00020192,2]
[322851780,1713415832581,-150.0,0.00020192,2]
[322851781,1713415832590,-418.79,0.00020192,2]
[322851782,1713415832599,-150.0,0.00020192,2]
[322851783,1713415832608,-418.79,0.00020192,2]
[322851784,1713415832619,-150.0,0.00020192,2]
[322851785,1713415832629,-418.79,0.00020192,2]
[322851786,1713415832638,-150.0,0.00020192,2]
[322851787,1713415832648,-418.79,0.00020192,2]
[322851788,1713415832661,-150.0,0.00020192,2]
[322851789,1713415832670,-418.79,0.00020192,2]
[322851790,1713415832679,-150.0,0.00020192,2]
[322851791,1713415832688,-418.79,0.00020192,2]
[322851792,1713415832697,-150.0,0.00020192,2]
[322851793,1713415832707,-418.79,0.00020192,2]
[322851794,1713415832716,-150.0,0.00020192,2]
[322851795,1713415832724,-418.79,0.00020192,2]
[322851796,1713415832734,-150.0,0.00020192,2]
[322851797,1713415832742,-418.79,0.00020192,2]
[322851798,1713415832752,-150.0,0.00020192,2]
[322851799,1713415832761,-418.79,0.00020192,2]
[322851800,1713415832772,-150.0,0.00020192,2]
[322851801,1713415832782,-150.0,0.00020192,2]
[322851802,1713415832791,-418.79,0.00020192,2]
[322851803,1713415832801,-627.24,0.00020192,2]
[322851804,1713415832811,-412.0623076,0.00020272,2]
[322851805,1713415832820,-418.79,0.00020278,2]
[322851806,1713415832829,-521.64,0.00020278,2]
[322851807,1713415832839,-150.0,0.00020278,2]
[322851808,1713415832849,-162.63,0.00020278,2]
[322851809,1713415832858,-350.16,0.00020278,2]
[322851810,1713415832869,-150.0,0.00020278,2]
[322851811,1713415832878,-150.0,0.00020278,2]
[322851812,1713415832889,-418.79,0.00020278,2]
[322851813,1713415832898,-150.0,0.00020278,2]
[322851814,1713415832909,-521.64,0.00020278,2]
[322851815,1713415832918,-162.63,0.00020278,2]
[322851816,1713415832927,-350.16,0.00020278,2]
[322851817,1713415832937,-174.81298706,0.0002032,2]
[322851818,1713415832948,-153.2584297,0.00020369,2]
[322851819,1713415832957,-412.0623076,0.00020372,2]
[322851820,1713415832967,-6848.37365843,0.000204,2]
[322851821,1713415833832,-126.5793882,0.000204,2]
[322851822,1713415833842,-151.33842427,0.00020463,2]
[322851823,1713415833851,-63.5630713,0.00020489,2]
[322851824,1713415833862,-86.54394276,0.00020489,2]
[322851825,1713415833871,-150.0,0.000205,2]
[322851826,1713415833881,-153.55208797,0.00020506,2]
[322851827,1713415833890,-2823.42646822,0.00020519,2]
[322851828,1713415833899,-153.2584297,0.00020521,2]
[322851829,1713415833908,-338.93991735,0.00020531,2]
[322851830,1713415833917,-166.66666667,0.00020547,2]
[322851831,1713415833927,-325.3385746,0.0002055,2]
[322851832,1713415833936,-412.0623076,0.00020573,2]
[322851833,1713415833946,-2823.42646822,0.0002058,2]
[322851834,1713415833957,-159.756848,0.000206,2]
[322851835,1713415833966,-795.98653678,0.00020649,2]
[322851836,1713415833977,-166.66666667,0.00020654,2]
[322851837,1713415833988,-153.55208797,0.00020656,2]
[322851838,1713415833998,-150.0,0.00020694,2]
[322851839,1713415834007,-150.0,0.00020708,2]
[322851840,1713415834017,-150.0,0.00020716,2]
[322851841,1713415834029,-418.38299985,0.00020716,2]
[322851842,1713415834038,-150.0,0.00020719,2]
[322851843,1713415834048,-150.0,0.00020732,2]
[322851844,1713415834058,-150.0,0.00020757,2]
[322851845,1713415834067,-150.0,0.00020769,2]
[322851846,1713415834077,-150.0,0.00020778,2]
[322851847,1713415834087,-150.0,0.00020784,2]
[322851848,1713415834096,-150.0,0.00020787,2]
[322851849,1713415834106,-150.0,0.00020788,2]
[322851850,1713415834115,-166.61956311,0.00020789,2]
[322851851,1713415834124,-708.85868013,0.0002079,2]
[322851852,1713415834200,-1083.55261987,0.0002079,2]
[322851853,1713415834210,-150.0,0.00020796,2]
[322851854,1713415834219,-150.0,0.00020812,2]
[322851855,1713415834228,-150.0,0.00020818,2]
[322851856,1713415834238,-150.0,0.00020827,2]
[322851857,1713415834247,-261.84243405,0.0002083,2]
[322851858,1713415834256,-500.0,0.00020831,2]
[322851859,1713415834266,-500.0,0.00020832,2]
[322851860,1713415834275,-325.3385746,0.00020856,2]
[322851861,1713415834284,-150.0,0.00020858,2]
[322851862,1713415834294,-150.0,0.00020858,2]
[322851863,1713415834303,-174.81298706,0.00020864,2]
[322851864,1713415834312,-150.0,0.00020883,2]
[322851865,1713415834322,-166.66666666,0.00020885,2]
[322851866,1713415834331,-164.15412864,0.00020895,2]
[322851867,1713415834341,-779.00515469,0.00020898,2]
[322851868,1713415834351,-642.5261,0.00020898,2]
[322851869,1713415834360,-779.00515467,0.00020898,2]
[322851870,1713415834371,-779.00515467,0.00020899,2]
[322851871,1713415834380,-1961.3342462,0.00020899,2]
[322851872,1713415834390,-779.00515467,0.00020899,2]
[322851873,1713415834399,-1961.3342462,0.00020899,2]
[322851874,1713415834409,-1961.3342462,0.00020899,2]
[322851875,1713415834418,-779.00515467,0.00020899,2]
[322851876,1713415834428,-1961.3342462,0.00020899,2]
[322851877,1713415834437,-779.00515467,0.00020899,2]
[322851878,1713415834446,-1961.3342462,0.000209,2]
[322851879,1713415834456,-779.00515467,0.000209,2]
[322851880,1713415834465,-1961.3342462,0.000209,2]
[322851881,1713415834474,-10000.0,0.000209,2]
[322851882,1713415834484,-1000.0,0.000209,3]
[322851883,1713415834493,-1000.0,0.000209,3]
[322851884,1713415834502,-1000.0,0.000209,3]
[322851885,1713415834512,-1085.0,0.000209,2]
[322851886,1713415834521,-1000.0,0.000209,2]
[322851887,1713415834530,-1000.0,0.000209,2]
[322851888,1713415834540,-1000.0,0.000209,2]
[322851889,1713415834553,-1000.0,0.000209,2]
[322851890,1713415834562,-1004.0,0.000209,2]
[322851891,1713415834574,-1004.0,0.000209,3]
[322851892,1713415834583,-1000.0,0.000209,2]
[322851893,1713415834592,-1000.0,0.000209,2]
[322851894,1713415834602,-1961.3342462,0.000209,2]
[322851895,1713415834611,-779.00515467,0.000209,2]
[322851896,1713415834620,-350.59149346,0.000209,2]
[322851897,1713415834630,-150.0,0.00020901,2]
[322851898,1713415834639,-795.98653678,0.00020908,2]
[322851899,1713415834650,-150.0,0.00020913,2]
[322851900,1713415834659,-150.0,0.00020917,2]
[322851901,1713415834669,-150.0,0.00020918,2]
[322851902,1713415834678,-150.0,0.0002092,2]
[322851903,1713415834687,-150.0,0.00020936,2]
[322851904,1713415834696,-150.0,0.00020938,2]
[322851905,1713415834705,-150.0,0.00020938,2]
[322851906,1713415834714,-150.0,0.00020944,2]
[322851907,1713415834723,-150.0,0.00020947,2]
[322851908,1713415834733,-150.0,0.00020958,2]
[322851909,1713415834742,-150.0,0.00020959,2]
[322851910,1713415834752,-1000.0,0.0002097,2]
[322851911,1713415834761,-412.0623076,0.00020985,2]
[322851912,1713415834770,-340.0,0.00020986,2]
[322851913,1713415834780,-155.91,0.00020988,2]
[322851914,1713415834789,-155.91,0.00020988,2]
[322851915,1713415834799,-155.91,0.00020988,2]
[322851916,1713415834808,-155.91,0.0002099,2]
[322851917,1713415834818,-155.91,0.0002099,2]
[322851918,1713415834829,-155.91,0.0002099,2]
[322851919,1713415834839,-155.91,0.0002099,2]
[322851920,1713415834850,-155.91,0.0002099,2]
[322851921,1713415834860,-155.91,0.0002099,2]
[322851922,1713415834871,-209.48100038,0.00020996,2]
[322851923,1713415834882,-151.33842427,0.00020996,2]
[322851924,1713415834893,-1879.15733311,0.00020996,2]
[322851925,1713415834903,-301.3922634,0.00020996,2]
[322851926,1713415834922,-364.50160698,0.00020996,2]
[322851927,1713415834933,-438.8365449,0.00020997,2]
[322851928,1713415834944,-5600.977049,0.00020997,2]
[322851929,1713415834955,-333.8733222,0.00020997,2]
[322851930,1713415834967,-11950.0977346,0.00020997,2]
[322851931,1713415834979,-777.2945693,0.00020997,2]
[322851932,1713415834996,-1918.2530239,0.00020997,2]
[322851933,1713415835008,-357.5226476,0.00020997,2]
[322851934,1713415835019,-7406.1737707,0.00020997,2]
[322851935,1713415835031,-1802.0625507,0.00020997,2]
[322851936,1713415835044,-571.91049415,0.00020998,2]
[322851937,1713415835056,-155.40695987,0.00020998,2]
[322851938,1713415835069,-169.47420176,0.00020998,2]
[322851939,1713415835081,-201.27742163,0.00020998,2]
[322851940,1713415835094,-3389.09830255,0.00020998,2]
[322851941,1713415835105,-217.59187368,0.00020998,2]